[Event "Titled Tuesday Blitz August 08 Early 2023"]
[White "Domingo Nunez, Alejandro"]
[Black "Thorsteinsdottir, Hallgerdur"]
[WhiteFideId "22245561"]
[BlackFideId "2302454"]
[WhiteElo "2518"]
[BlackElo "2164"]
[Result "1-0"]
[Round "5"]
[TimeControl "180+1"]
[Date "2023.08.08"]
[WhiteClock "0:00:12"]
[BlackClock "0:00:00"]
[Board "161"]

1. Nf3 {[%clk 0:03:00]}  Nf6 {[%clk 0:02:55]} 2. g3 {[%clk 0:03:00]}  b6 {[%clk 0:02:52]} 3. Bg2 {[%clk 0:03:00]}  Bb7 {[%clk 0:02:53]} 4. O-O {[%clk 0:03:00]}  e6 {[%clk 0:02:53]} 5. b3 {[%clk 0:02:58]}  Be7 {[%clk 0:02:50]} 6. Bb2 {[%clk 0:02:58]}  O-O {[%clk 0:02:50]} 7. c4 {[%clk 0:02:58]}  d5 {[%clk 0:02:48]} 8. cxd5 {[%clk 0:02:55]}  Nxd5 {[%clk 0:02:48]} 9. d4 {[%clk 0:02:55]}  c5 {[%clk 0:02:43]} 10. dxc5 {[%clk 0:02:35]}  Bxc5 {[%clk 0:02:42]} 11. Nbd2 {[%clk 0:02:35]}  Nc6 {[%clk 0:02:31]} 12. Rc1 {[%clk 0:02:34]}  Rc8 {[%clk 0:02:28]} 13. a3 {[%clk 0:02:32]}  a5 {[%clk 0:02:23]} 14. Qc2 {[%clk 0:02:31]}  Qe7 {[%clk 0:02:19]} 15. e4 {[%clk 0:02:23]}  Nf6 {[%clk 0:02:12]} 16. Nb1 {[%clk 0:02:15]}  Rfd8 {[%clk 0:02:02]} 17. Qe2 {[%clk 0:02:11]}  Nb8 {[%clk 0:01:55]} 18. Rfd1 {[%clk 0:02:10]}  Nxe4 {[%clk 0:01:49]} 19. Nd4 {[%clk 0:01:50]}  Nf6 {[%clk 0:01:36]} 20. Nb5 {[%clk 0:01:21]}  Bxg2 {[%clk 0:01:30]} 21. Kxg2 {[%clk 0:01:22]}  Nc6 {[%clk 0:01:15]} 22. h4 {[%clk 0:01:04]}  Nd5 {[%clk 0:01:09]} 23. Nd2 {[%clk 0:00:55]}  Qe8 {[%clk 0:00:42]} 24. Ne4 {[%clk 0:00:49]}  Bf8 {[%clk 0:00:36]} 25. h5 {[%clk 0:00:37]}  h6 {[%clk 0:00:30]} 26. Qf3 {[%clk 0:00:12]}  Qe7 {[%clk 0:00:18]} 27. Rc4 {[%clk 0:00:05]}  Nb8 {[%clk 0:00:15]} 28. Rcd4 {[%clk 0:00:05]}  Rc2 {[%clk 0:00:14]} 29. Bc1 {[%clk 0:00:04]}  Rdc8 {[%clk 0:00:13]} 30. Nd2 {[%clk 0:00:03]}  Rxc1 {[%clk 0:00:12]} 31. Rxc1 {[%clk 0:00:03]}  Rxc1 {[%clk 0:00:12]} 32. Nc4 {[%clk 0:00:03]}  Qg5 {[%clk 0:00:12]} 33. Rg4 {[%clk 0:00:02]}  Qf6 {[%clk 0:00:10]} 34. Qe2 {[%clk 0:00:01]}  Rb1 {[%clk 0:00:09]} 35. Ne5 {[%clk 0:00:01]}  Rxb3 {[%clk 0:00:08]} 36. Nd3 {[%clk 0:00:02]}  Rxa3 {[%clk 0:00:08]} 37. Nd4 {[%clk 0:00:02]}  Rc3 {[%clk 0:00:06]} 38. Ne5 {[%clk 0:00:02]}  a4 {[%clk 0:00:04]} 39. Ndf3 {[%clk 0:00:03]}  a3 {[%clk 0:00:04]} 40. Qa2 {[%clk 0:00:03]}  Nb4 {[%clk 0:00:02]} 41. Qa1 {[%clk 0:00:03]}  Rc2 {[%clk 0:00:01]} 42. Qb1 {[%clk 0:00:03]}  a2 {[%clk 0:00:02]} 43. Qa1 {[%clk 0:00:03]}  Rb2 {[%clk 0:00:02]} 44. Rxb4 {[%clk 0:00:04]}  Rxb4 {[%clk 0:00:02]} 45. Qxa2 {[%clk 0:00:05]}  Nc6 {[%clk 0:00:01]} 46. Nxc6 {[%clk 0:00:04]}  Rb5 {[%clk 0:00:01]} 47. Ncd4 {[%clk 0:00:04]}  Rxh5 {[%clk 0:00:01]} 48. Ne2 {[%clk 0:00:04]}  Rf5 {[%clk 0:00:02]} 49. Nf4 {[%clk 0:00:05]}  Rxf4 {[%clk 0:00:02]} 50. gxf4 {[%clk 0:00:06]}  Qxf4 {[%clk 0:00:02]} 51. Qe2 {[%clk 0:00:06]}  Qg4+ {[%clk 0:00:03]} 52. Kf1 {[%clk 0:00:07]}  b5 {[%clk 0:00:03]} 53. Qe3 {[%clk 0:00:06]}  b4 {[%clk 0:00:04]} 54. Nd2 {[%clk 0:00:07]}  Qd1+ {[%clk 0:00:03]} 55. Kg2 {[%clk 0:00:08]}  Qc2 {[%clk 0:00:02]} 56. Ne4 {[%clk 0:00:07]}  Qc3 {[%clk 0:00:02]} 57. Nxc3 {[%clk 0:00:06]}  bxc3 {[%clk 0:00:03]} 58. Qxc3 {[%clk 0:00:07]}  Kh7 {[%clk 0:00:03]} 59. Qc8 {[%clk 0:00:08]}  Kg8 {[%clk 0:00:02]} 60. Kf3 {[%clk 0:00:08]}  h5 {[%clk 0:00:03]} 61. Qe8 {[%clk 0:00:09]}  g6 {[%clk 0:00:03]} 62. Kf4 {[%clk 0:00:09]}  Kg7 {[%clk 0:00:04]} 63. Ke4 {[%clk 0:00:10]}  Bd6 {[%clk 0:00:04]} 64. Qd7 {[%clk 0:00:10]}  Bh2 {[%clk 0:00:04]} 65. Qd4+ {[%clk 0:00:10]}  Kh7 {[%clk 0:00:01]} 66. Qf6 {[%clk 0:00:11]}  Kg8 {[%clk 0:00:01]} 67. f4 {[%clk 0:00:11]}  Bg1 {[%clk 0:00:01]} 68. Ke5 {[%clk 0:00:11]}  Bb6 {[%clk 0:00:01]} 69. Kd6 {[%clk 0:00:11]}  Ba5 {[%clk 0:00:01]} 70. Kd7 {[%clk 0:00:11]}  Bb4 {[%clk 0:00:02]} 71. Ke8 {[%clk 0:00:11]}  Ba5 {[%clk 0:00:03]} 72. Qxf7+ {[%clk 0:00:12]}  Kh8 {[%clk 0:00:00]} 73. Qxg6 {[%clk 0:00:12]} 1-0


[Site "https://www.chess.com"]

[Event "Titled Tuesday Blitz August 08 Early 2023"]
[White "Narayanan, Srinath"]
[Black "Namitbir Singh Walia"]
[WhiteFideId "5018420"]
[BlackFideId "35071068"]
[WhiteElo "2855"]
[BlackElo "2422"]
[Result "1-0"]
[Round "5"]
[TimeControl "180+1"]
[Date "2023.08.08"]
[WhiteClock "0:00:04"]
[BlackClock "0:00:06"]
[Board "162"]

1. Nf3 {[%clk 0:03:00]}  Nf6 {[%clk 0:03:00]} 2. c4 {[%clk 0:03:00]}  g6 {[%clk 0:02:59]} 3. b3 {[%clk 0:03:00]}  Bg7 {[%clk 0:02:59]} 4. Bb2 {[%clk 0:03:01]}  O-O {[%clk 0:03:00]} 5. g3 {[%clk 0:03:01]}  c6 {[%clk 0:02:53]} 6. Bg2 {[%clk 0:03:02]}  d5 {[%clk 0:02:53]} 7. O-O {[%clk 0:03:02]}  b6 {[%clk 0:02:31]} 8. d3 {[%clk 0:03:00]}  Bb7 {[%clk 0:02:31]} 9. Nbd2 {[%clk 0:03:01]}  Nbd7 {[%clk 0:02:31]} 10. a3 {[%clk 0:03:00]}  dxc4 {[%clk 0:02:28]} 11. bxc4 {[%clk 0:02:59]}  c5 {[%clk 0:02:28]} 12. a4 {[%clk 0:02:59]}  Qc7 {[%clk 0:02:25]} 13. Qb3 {[%clk 0:02:58]}  e5 {[%clk 0:02:22]} 14. a5 {[%clk 0:02:56]}  Rfe8 {[%clk 0:02:22]} 15. Rfd1 {[%clk 0:02:38]}  Nb8 {[%clk 0:01:52]} 16. Nxe5 {[%clk 0:01:42]}  Bxg2 {[%clk 0:01:46]} 17. Kxg2 {[%clk 0:01:43]}  bxa5 {[%clk 0:01:27]} 18. Ndf3 {[%clk 0:01:34]}  Qb6 {[%clk 0:00:49]} 19. Qa3 {[%clk 0:01:21]}  Ng4 {[%clk 0:00:43]} 20. d4 {[%clk 0:01:10]}  Nxe5 {[%clk 0:00:27]} 21. dxe5 {[%clk 0:01:08]}  Nc6 {[%clk 0:00:26]} 22. e3 {[%clk 0:00:56]}  Qb4 {[%clk 0:00:25]} 23. Rd5 {[%clk 0:00:47]}  Qxc4 {[%clk 0:00:18]} 24. Rxc5 {[%clk 0:00:46]}  Qe4 {[%clk 0:00:18]} 25. Qa4 {[%clk 0:00:42]}  Nb4 {[%clk 0:00:12]} 26. Rxa5 {[%clk 0:00:34]}  Red8 {[%clk 0:00:10]} 27. Bc3 {[%clk 0:00:23]}  Rab8 {[%clk 0:00:09]} 28. Rxa7 {[%clk 0:00:18]}  g5 {[%clk 0:00:08]} 29. Bxb4 {[%clk 0:00:08]}  Rxb4 {[%clk 0:00:08]} 30. Qa2 {[%clk 0:00:09]}  Rf8 {[%clk 0:00:06]} 31. h3 {[%clk 0:00:10]}  h5 {[%clk 0:00:06]} 32. Ra4 {[%clk 0:00:04]}  g4 {[%clk 0:00:05]} 33. hxg4 {[%clk 0:00:04]}  hxg4 {[%clk 0:00:05]} 34. Rxb4 {[%clk 0:00:05]}  gxf3+ {[%clk 0:00:06]} 35. Kg1 {[%clk 0:00:05]}  Qxb4 {[%clk 0:00:06]} 36. Qd5 {[%clk 0:00:06]}  Qg4 {[%clk 0:00:07]} 37. Ra4 {[%clk 0:00:04]}  Qxa4 {[%clk 0:00:06]} 38. Qxf3 {[%clk 0:00:04]}  Qa1+ {[%clk 0:00:06]} 39. Kg2 {[%clk 0:00:04]}  Qxe5 {[%clk 0:00:07]} 40. Qb7 {[%clk 0:00:05]}  Qf6 {[%clk 0:00:08]} 41. Qd5 {[%clk 0:00:05]}  Rd8 {[%clk 0:00:09]} 42. Qc4 {[%clk 0:00:05]}  Qd6 {[%clk 0:00:08]} 43. Qh4 {[%clk 0:00:04]}  Qe7 {[%clk 0:00:06]} 44. Qxe7 {[%clk 0:00:04]} 1-0


[Site "https://www.chess.com"]

[Event "Titled Tuesday Blitz August 08 Early 2023"]
[White "Goroshkov, Maksym"]
[Black "Pershina, Elena"]
[WhiteFideId "14142716"]
[BlackFideId "24147516"]
[WhiteElo "2647"]
[BlackElo "2395"]
[Result "1-0"]
[Round "5"]
[TimeControl "180+1"]
[Date "2023.08.08"]
[WhiteClock "0:00:18"]
[BlackClock "0:00:00"]
[Board "164"]

1. e4 {[%clk 0:02:58]}  c5 {[%clk 0:02:59]} 2. b4 {[%clk 0:02:58]}  cxb4 {[%clk 0:02:56]} 3. a3 {[%clk 0:02:58]}  d5 {[%clk 0:02:55]} 4. exd5 {[%clk 0:02:58]}  Qxd5 {[%clk 0:02:56]} 5. Nf3 {[%clk 0:02:59]}  Bg4 {[%clk 0:02:43]} 6. axb4 {[%clk 0:02:45]}  Bxf3 {[%clk 0:02:37]} 7. Qxf3 {[%clk 0:02:44]}  Qxf3 {[%clk 0:02:11]} 8. gxf3 {[%clk 0:02:45]}  e5 {[%clk 0:02:08]} 9. Bb5+ {[%clk 0:02:43]}  Nc6 {[%clk 0:02:07]} 10. Bb2 {[%clk 0:02:30]}  f6 {[%clk 0:01:57]} 11. Nc3 {[%clk 0:02:18]}  Bxb4 {[%clk 0:01:53]} 12. Nd5 {[%clk 0:02:17]}  Bd6 {[%clk 0:01:48]} 13. Nb6 {[%clk 0:02:08]}  Rb8 {[%clk 0:01:30]} 14. Nc4 {[%clk 0:02:06]}  Bc5 {[%clk 0:01:26]} 15. Ba3 {[%clk 0:02:00]}  Bxa3 {[%clk 0:01:13]} 16. Rxa3 {[%clk 0:02:01]}  Ne7 {[%clk 0:01:04]} 17. Rxa7 {[%clk 0:01:48]}  O-O {[%clk 0:01:02]} 18. Bxc6 {[%clk 0:01:24]}  Nxc6 {[%clk 0:01:03]} 19. Ra2 {[%clk 0:01:18]}  Nd4 {[%clk 0:01:00]} 20. c3 {[%clk 0:01:14]}  Nxf3+ {[%clk 0:00:58]} 21. Ke2 {[%clk 0:01:14]}  Ng5 {[%clk 0:00:53]} 22. Rb1 {[%clk 0:01:11]}  Ne6 {[%clk 0:00:39]} 23. Rab2 {[%clk 0:01:03]}  Nf4+ {[%clk 0:00:35]} 24. Ke3 {[%clk 0:01:02]}  Rfd8 {[%clk 0:00:32]} 25. Rxb7 {[%clk 0:00:58]}  Rd3+ {[%clk 0:00:20]} 26. Ke4 {[%clk 0:00:56]}  Rbd8 {[%clk 0:00:20]} 27. Rb8 {[%clk 0:00:45]}  Kf7 {[%clk 0:00:20]} 28. R8b7+ {[%clk 0:00:30]}  Kg6 {[%clk 0:00:19]} 29. Rg1+ {[%clk 0:00:30]}  Kh6 {[%clk 0:00:17]} 30. Rgxg7 {[%clk 0:00:29]}  Ne6 {[%clk 0:00:11]} 31. Rg3 {[%clk 0:00:18]}  Ng5+ {[%clk 0:00:09]} 32. Kf5 {[%clk 0:00:18]}  Rxg3 {[%clk 0:00:07]} 33. hxg3 {[%clk 0:00:19]}  Nf3 {[%clk 0:00:05]} 34. Ne3 {[%clk 0:00:17]}  Nxd2 {[%clk 0:00:00]} 35. Ng4+ {[%clk 0:00:18]} 1-0


[Site "https://www.chess.com"]

[Event "Titled Tuesday Blitz August 08 Early 2023"]
[White "Zeynalli, Rashad"]
[Black "Kanyamarala, Trisha"]
[WhiteFideId "13403320"]
[BlackFideId "45004722"]
[WhiteElo "2646"]
[BlackElo "2363"]
[Result "1-0"]
[Round "5"]
[TimeControl "180+1"]
[Date "2023.08.08"]
[WhiteClock "0:00:57"]
[BlackClock "0:00:14"]
[Board "165"]

1. e4 {[%clk 0:02:55]}  c5 {[%clk 0:02:57]} 2. Nf3 {[%clk 0:02:53]}  d6 {[%clk 0:02:48]} 3. Bb5+ {[%clk 0:02:53]}  Nd7 {[%clk 0:02:45]} 4. a4 {[%clk 0:02:52]}  g6 {[%clk 0:02:43]} 5. a5 {[%clk 0:02:50]}  a6 {[%clk 0:02:40]} 6. Bc4 {[%clk 0:02:43]}  Bg7 {[%clk 0:02:39]} 7. Bxf7+ {[%clk 0:02:42]}  Kxf7 {[%clk 0:02:26]} 8. Ng5+ {[%clk 0:02:41]}  Ke8 {[%clk 0:01:54]} 9. Ne6 {[%clk 0:02:36]}  Bf6 {[%clk 0:01:54]} 10. Nc3 {[%clk 0:02:30]}  Ne5 {[%clk 0:01:49]} 11. Nxd8 {[%clk 0:02:29]}  Kxd8 {[%clk 0:01:50]} 12. Nd5 {[%clk 0:02:28]}  Bg7 {[%clk 0:01:48]} 13. d3 {[%clk 0:02:26]}  Nf6 {[%clk 0:01:47]} 14. O-O {[%clk 0:02:24]}  Bd7 {[%clk 0:01:39]} 15. h3 {[%clk 0:02:22]}  Bc6 {[%clk 0:01:30]} 16. Nb6 {[%clk 0:02:22]}  Rb8 {[%clk 0:01:29]} 17. f4 {[%clk 0:02:21]}  Ned7 {[%clk 0:01:27]} 18. e5 {[%clk 0:02:22]}  Nd5 {[%clk 0:01:26]} 19. exd6 {[%clk 0:02:19]}  exd6 {[%clk 0:01:26]} 20. f5 {[%clk 0:02:17]}  Bd4+ {[%clk 0:01:22]} 21. Kh1 {[%clk 0:02:15]}  N7xb6 {[%clk 0:01:22]} 22. Bg5+ {[%clk 0:02:12]}  Kc7 {[%clk 0:01:20]} 23. axb6+ {[%clk 0:02:13]}  Kxb6 {[%clk 0:01:18]} 24. c3 {[%clk 0:02:11]}  Be3 {[%clk 0:01:17]} 25. Qb3+ {[%clk 0:01:55]}  Ka7 {[%clk 0:01:16]} 26. c4 {[%clk 0:01:34]}  Bxg5 {[%clk 0:01:15]} 27. cxd5 {[%clk 0:01:34]}  Bd7 {[%clk 0:01:14]} 28. f6 {[%clk 0:01:34]}  Rhf8 {[%clk 0:01:10]} 29. f7 {[%clk 0:01:33]}  h5 {[%clk 0:01:04]} 30. d4 {[%clk 0:01:22]}  cxd4 {[%clk 0:01:02]} 31. Qd3 {[%clk 0:01:22]}  Be3 {[%clk 0:01:01]} 32. Qxg6 {[%clk 0:01:22]}  Bb5 {[%clk 0:00:53]} 33. Qxd6 {[%clk 0:01:08]}  Bxf1 {[%clk 0:00:46]} 34. Qc5+ {[%clk 0:01:08]}  Ka8 {[%clk 0:00:27]} 35. Rxf1 {[%clk 0:01:05]}  Rbc8 {[%clk 0:00:27]} 36. Qxc8+ {[%clk 0:00:54]}  Rxc8 {[%clk 0:00:26]} 37. f8=Q {[%clk 0:00:55]}  Rxf8 {[%clk 0:00:26]} 38. Rxf8+ {[%clk 0:00:56]}  Ka7 {[%clk 0:00:25]} 39. d6 {[%clk 0:00:56]}  Bg5 {[%clk 0:00:18]} 40. d7 {[%clk 0:00:53]}  d3 {[%clk 0:00:16]} 41. d8=Q {[%clk 0:00:54]}  Bxd8 {[%clk 0:00:16]} 42. Rxd8 {[%clk 0:00:55]}  d2 {[%clk 0:00:16]} 43. Rxd2 {[%clk 0:00:56]}  Kb6 {[%clk 0:00:14]} 44. Rd5 {[%clk 0:00:56]}  Kc6 {[%clk 0:00:14]} 45. Rxh5 {[%clk 0:00:57]}  b5 {[%clk 0:00:15]} 46. Rh6+ {[%clk 0:00:57]}  Kc5 {[%clk 0:00:14]} 47. Rxa6 {[%clk 0:00:57]} 1-0


[Site "https://www.chess.com"]

[Event "Titled Tuesday Blitz August 08 Early 2023"]
[White "Kononenko, Dmitry"]
[Black "Korpics, Zsolt"]
[WhiteFideId "14113538"]
[BlackFideId "705241"]
[WhiteElo "2598"]
[BlackElo "2349"]
[Result "0-1"]
[Round "5"]
[TimeControl "180+1"]
[Date "2023.08.08"]
[WhiteClock "0:02:10"]
[BlackClock "0:01:02"]
[Board "166"]

1. e4 {[%clk 0:02:59]}  c5 {[%clk 0:02:59]} 2. Nf3 {[%clk 0:02:59]}  e6 {[%clk 0:02:58]} 3. d4 {[%clk 0:03:00]}  cxd4 {[%clk 0:02:59]} 4. Nxd4 {[%clk 0:03:01]}  Nc6 {[%clk 0:02:59]} 5. Nc3 {[%clk 0:03:01]}  Qc7 {[%clk 0:02:59]} 6. Bc4 {[%clk 0:02:58]}  Nf6 {[%clk 0:02:50]} 7. O-O {[%clk 0:02:56]}  Nxd4 {[%clk 0:02:49]} 8. Qxd4 {[%clk 0:02:56]}  Bc5 {[%clk 0:02:49]} 9. Nb5 {[%clk 0:02:52]}  Qc6 {[%clk 0:02:39]} 10. Qd3 {[%clk 0:02:51]}  a6 {[%clk 0:02:29]} 11. Nd4 {[%clk 0:02:49]}  Qd6 {[%clk 0:02:20]} 12. Be3 {[%clk 0:02:46]}  Ng4 {[%clk 0:02:18]} 13. g3 {[%clk 0:02:45]}  Ne5 {[%clk 0:02:12]} 14. Qd1 {[%clk 0:02:33]}  Bxd4 {[%clk 0:02:02]} 15. Bxd4 {[%clk 0:02:34]}  Qxd4 {[%clk 0:01:56]} 16. Qxd4 {[%clk 0:02:35]}  Nf3+ {[%clk 0:01:56]} 17. Kg2 {[%clk 0:02:36]}  Nxd4 {[%clk 0:01:57]} 18. Rfd1 {[%clk 0:02:35]}  Nc6 {[%clk 0:01:55]} 19. f4 {[%clk 0:02:36]}  b5 {[%clk 0:01:54]} 20. Be2 {[%clk 0:02:35]}  Bb7 {[%clk 0:01:55]} 21. Bf3 {[%clk 0:02:35]}  Ke7 {[%clk 0:01:46]} 22. e5 {[%clk 0:02:35]}  Na5 {[%clk 0:01:44]} 23. Bxb7 {[%clk 0:02:31]}  Nxb7 {[%clk 0:01:44]} 24. Rd2 {[%clk 0:02:32]}  d5 {[%clk 0:01:42]} 25. a4 {[%clk 0:02:30]}  bxa4 {[%clk 0:01:38]} 26. Rxa4 {[%clk 0:02:29]}  Nc5 {[%clk 0:01:38]} 27. Ra5 {[%clk 0:02:27]}  Ne4 {[%clk 0:01:37]} 28. Rd4 {[%clk 0:02:26]}  Rhc8 {[%clk 0:01:33]} 29. c3 {[%clk 0:02:26]}  Rab8 {[%clk 0:01:28]} 30. Ra2 {[%clk 0:02:25]}  Rb6 {[%clk 0:01:26]} 31. f5 {[%clk 0:02:15]}  exf5 {[%clk 0:01:10]} 32. Rxd5 {[%clk 0:02:14]}  Rcb8 {[%clk 0:01:10]} 33. Kh3 {[%clk 0:02:11]}  Rxb2 {[%clk 0:01:07]} 34. Rxa6 {[%clk 0:02:11]}  Ng5+ {[%clk 0:01:01]} 35. Kh4 {[%clk 0:02:11]}  Nf3+ {[%clk 0:01:01]} 36. Kh5 {[%clk 0:02:10]}  Rxh2# {[%clk 0:01:02]} 0-1


[Site "https://www.chess.com"]

[Event "Titled Tuesday Blitz August 08 Early 2023"]
[White "Veiga, Jose Francisco R P Neves"]
[Black "Ladan, Nicholas"]
[WhiteFideId "1930087"]
[BlackFideId "30918855"]
[WhiteElo "2546"]
[BlackElo "2427"]
[Result "1-0"]
[Round "5"]
[TimeControl "180+1"]
[Date "2023.08.08"]
[WhiteClock "0:00:11"]
[BlackClock "0:00:00"]
[Board "167"]

1. Nf3 {[%clk 0:02:56]}  d5 {[%clk 0:02:59]} 2. d4 {[%clk 0:02:56]}  Nf6 {[%clk 0:02:58]} 3. Bf4 {[%clk 0:02:56]}  c5 {[%clk 0:02:58]} 4. e3 {[%clk 0:02:56]}  Nc6 {[%clk 0:02:59]} 5. c3 {[%clk 0:02:56]}  Qb6 {[%clk 0:02:58]} 6. Qb3 {[%clk 0:02:55]}  c4 {[%clk 0:02:58]} 7. Qc2 {[%clk 0:02:55]}  Bf5 {[%clk 0:02:57]} 8. Qc1 {[%clk 0:02:55]}  Nh5 {[%clk 0:02:56]} 9. Bg3 {[%clk 0:02:46]}  Nxg3 {[%clk 0:02:55]} 10. hxg3 {[%clk 0:02:47]}  h6 {[%clk 0:02:53]} 11. Nbd2 {[%clk 0:02:47]}  e6 {[%clk 0:02:53]} 12. Be2 {[%clk 0:02:42]}  Be7 {[%clk 0:02:48]} 13. Bd1 {[%clk 0:02:39]}  a5 {[%clk 0:02:45]} 14. a4 {[%clk 0:02:08]}  O-O {[%clk 0:02:27]} 15. Bc2 {[%clk 0:01:59]}  Bf6 {[%clk 0:02:26]} 16. Qb1 {[%clk 0:01:56]}  Ne7 {[%clk 0:02:25]} 17. e4 {[%clk 0:01:50]}  dxe4 {[%clk 0:02:23]} 18. Nxe4 {[%clk 0:01:51]}  Bxe4 {[%clk 0:02:15]} 19. Bxe4 {[%clk 0:01:52]}  Qc7 {[%clk 0:02:03]} 20. Qc2 {[%clk 0:01:33]}  Ra6 {[%clk 0:02:02]} 21. Qe2 {[%clk 0:01:16]}  Rb6 {[%clk 0:02:01]} 22. Ra2 {[%clk 0:01:16]}  Nf5 {[%clk 0:01:55]} 23. g4 {[%clk 0:01:14]}  Nd6 {[%clk 0:01:43]} 24. g5 {[%clk 0:01:12]}  Be7 {[%clk 0:01:33]} 25. gxh6 {[%clk 0:01:09]}  g6 {[%clk 0:01:33]} 26. Ne5 {[%clk 0:00:57]}  Bf6 {[%clk 0:01:28]} 27. h7+ {[%clk 0:00:52]}  Kg7 {[%clk 0:01:27]} 28. Ng4 {[%clk 0:00:49]}  Rh8 {[%clk 0:01:18]} 29. Bxg6 {[%clk 0:00:33]}  fxg6 {[%clk 0:01:09]} 30. Nxf6 {[%clk 0:00:33]}  Nf7 {[%clk 0:00:58]} 31. Ng4 {[%clk 0:00:25]}  Rxh7 {[%clk 0:00:55]} 32. Rxh7+ {[%clk 0:00:24]}  Kxh7 {[%clk 0:00:56]} 33. g3 {[%clk 0:00:23]}  Kg7 {[%clk 0:00:56]} 34. Qe4 {[%clk 0:00:19]}  Qd8 {[%clk 0:00:41]} 35. Kd2 {[%clk 0:00:17]}  Qg5+ {[%clk 0:00:40]} 36. Kc2 {[%clk 0:00:18]}  Qf5 {[%clk 0:00:39]} 37. Qxf5 {[%clk 0:00:16]}  gxf5 {[%clk 0:00:40]} 38. Ne3 {[%clk 0:00:16]}  Nd6 {[%clk 0:00:36]} 39. Ra1 {[%clk 0:00:17]}  Rc6 {[%clk 0:00:33]} 40. Rh1 {[%clk 0:00:17]}  Ne4 {[%clk 0:00:33]} 41. f3 {[%clk 0:00:11]}  Nxg3 {[%clk 0:00:31]} 42. Rg1 {[%clk 0:00:12]}  f4 {[%clk 0:00:32]} 43. Ng2 {[%clk 0:00:12]}  Kf6 {[%clk 0:00:16]} 44. Nxf4 {[%clk 0:00:12]}  Kf5 {[%clk 0:00:16]} 45. Nh3 {[%clk 0:00:06]}  Ne2 {[%clk 0:00:12]} 46. Rg5+ {[%clk 0:00:06]}  Kf6 {[%clk 0:00:11]} 47. Rxa5 {[%clk 0:00:07]}  Rc7 {[%clk 0:00:10]} 48. Re5 {[%clk 0:00:08]}  Ng3 {[%clk 0:00:08]} 49. Nf4 {[%clk 0:00:07]}  Rc6 {[%clk 0:00:08]} 50. a5 {[%clk 0:00:06]}  Nf5 {[%clk 0:00:08]} 51. Re4 {[%clk 0:00:06]}  Ra6 {[%clk 0:00:07]} 52. Re5 {[%clk 0:00:06]}  Ne7 {[%clk 0:00:07]} 53. Rc5 {[%clk 0:00:07]}  Nc6 {[%clk 0:00:06]} 54. Rxc4 {[%clk 0:00:06]}  Nxa5 {[%clk 0:00:06]} 55. Rb4 {[%clk 0:00:06]}  Ra7 {[%clk 0:00:05]} 56. Nd3 {[%clk 0:00:07]}  Nc6 {[%clk 0:00:05]} 57. Rb6 {[%clk 0:00:07]}  Ne7 {[%clk 0:00:05]} 58. Nc5 {[%clk 0:00:07]}  Nd5 {[%clk 0:00:05]} 59. Rxb7 {[%clk 0:00:08]}  Ra1 {[%clk 0:00:04]} 60. Nd7+ {[%clk 0:00:08]}  Kf5 {[%clk 0:00:04]} 61. Ne5 {[%clk 0:00:09]}  Kf4 {[%clk 0:00:04]} 62. Rf7+ {[%clk 0:00:09]}  Ke3 {[%clk 0:00:04]} 63. Nc4+ {[%clk 0:00:09]}  Ke2 {[%clk 0:00:04]} 64. f4 {[%clk 0:00:10]}  Ra4 {[%clk 0:00:04]} 65. Kb3 {[%clk 0:00:10]}  Ra6 {[%clk 0:00:04]} 66. f5 {[%clk 0:00:10]}  exf5 {[%clk 0:00:00]} 67. Rxf5 {[%clk 0:00:11]} 1-0


[Site "https://www.chess.com"]

[Event "Titled Tuesday Blitz August 08 Early 2023"]
[White "Lesbekova, Assel"]
[Black "Souleidis, Georgios"]
[WhiteFideId "13713248"]
[BlackFideId "4206827"]
[WhiteElo "2335"]
[BlackElo "2541"]
[Result "0-1"]
[Round "5"]
[TimeControl "180+1"]
[Date "2023.08.08"]
[WhiteClock "0:00:55"]
[BlackClock "0:00:51"]
[Board "169"]

1. e4 {[%clk 0:03:00]}  c5 {[%clk 0:02:59]} 2. Nf3 {[%clk 0:03:00]}  e6 {[%clk 0:02:59]} 3. d4 {[%clk 0:02:59]}  cxd4 {[%clk 0:03:00]} 4. Nxd4 {[%clk 0:02:59]}  Nf6 {[%clk 0:02:57]} 5. Bd3 {[%clk 0:02:58]}  Nc6 {[%clk 0:02:53]} 6. Nxc6 {[%clk 0:02:52]}  bxc6 {[%clk 0:02:54]} 7. c4 {[%clk 0:02:50]}  d5 {[%clk 0:02:53]} 8. exd5 {[%clk 0:02:48]}  cxd5 {[%clk 0:02:54]} 9. O-O {[%clk 0:02:47]}  Be7 {[%clk 0:02:52]} 10. Nc3 {[%clk 0:02:45]}  O-O {[%clk 0:02:51]} 11. cxd5 {[%clk 0:02:45]}  exd5 {[%clk 0:02:39]} 12. Bg5 {[%clk 0:02:42]}  Be6 {[%clk 0:02:38]} 13. Ne2 {[%clk 0:02:32]}  h6 {[%clk 0:02:36]} 14. Bh4 {[%clk 0:02:27]}  Rb8 {[%clk 0:02:32]} 15. Qc2 {[%clk 0:02:20]}  Qb6 {[%clk 0:02:28]} 16. b3 {[%clk 0:02:18]}  Rfc8 {[%clk 0:02:27]} 17. Qb2 {[%clk 0:02:18]}  Qb4 {[%clk 0:02:21]} 18. Bg3 {[%clk 0:02:15]}  Ra8 {[%clk 0:02:12]} 19. Nd4 {[%clk 0:02:06]}  Qc3 {[%clk 0:01:54]} 20. Qxc3 {[%clk 0:01:57]}  Rxc3 {[%clk 0:01:55]} 21. Nxe6 {[%clk 0:01:57]}  fxe6 {[%clk 0:01:56]} 22. Ba6 {[%clk 0:01:54]}  Ne4 {[%clk 0:01:48]} 23. Be5 {[%clk 0:01:54]}  Rc5 {[%clk 0:01:33]} 24. Rfc1 {[%clk 0:01:50]}  Bf6 {[%clk 0:01:23]} 25. Bxf6 {[%clk 0:01:20]}  gxf6 {[%clk 0:01:23]} 26. b4 {[%clk 0:01:19]}  Rxc1+ {[%clk 0:01:11]} 27. Rxc1 {[%clk 0:01:20]}  Rb8 {[%clk 0:01:11]} 28. a3 {[%clk 0:01:18]}  Rb6 {[%clk 0:01:07]} 29. Bc8 {[%clk 0:01:17]}  d4 {[%clk 0:00:57]} 30. f3 {[%clk 0:01:17]}  Nc3 {[%clk 0:00:57]} 31. Kf2 {[%clk 0:01:14]}  Rc6 {[%clk 0:00:53]} 32. Bb7 {[%clk 0:01:03]}  Ne4+ {[%clk 0:00:51]} 33. fxe4 {[%clk 0:01:01]}  Rxc1 {[%clk 0:00:52]} 34. Ke2 {[%clk 0:01:00]}  Kf7 {[%clk 0:00:51]} 35. Kd3 {[%clk 0:01:00]}  e5 {[%clk 0:00:51]} 36. Bd5+ {[%clk 0:00:59]}  Ke7 {[%clk 0:00:51]} 37. Bc4 {[%clk 0:00:55]}  Rc3+ {[%clk 0:00:51]} 0-1


[Site "https://www.chess.com"]